Cogmind - Beta 15 @@@ ROGUE MODE // 2025.09.13 @ 23:44:50 Player: Inverisimilidude Result: Destroyed by Heavy Explosive Trap Performance ------------- Evolutions (3) 1500 Regions Visited (6) 1200 Robots Destroyed (88) 440 Value Destroyed (3542) 3542 Prototype IDs (5) 100 Alien Tech Used (0) 0 Bonus (881) 881 TOTAL SCORE: 7663 Bonus ------- High Alert Combat Kills 474 Follower Combat Kills 207 Entered Garrisons 200 Cogmind --------- Core Integrity 0/700 Matter 96/300 Energy 98/100 System Corruption 0% Temperature Cool (4) Movement Flying (35) Location -7/Factory Parts ------- > --- POWER (1) -------- (None) > --- PROPULSION (5) --- Cooled VTOL Module > --- UTILITY (5) ------ (None) > --- WEAPON (2) ------- (None) > --- INVENTORY (5) ---- Cesium-ion Thruster Cesium-ion Thruster Cooled VTOL Module Lightning Gun Peak State ------------ > --- POWER ------------ (None) > --- PROPULSION ------- Light Treads Medium Treads Aerolev Unit Surge Thruster > --- UTILITY ---------- Improved Sensor Array Improved Signal Interpreter Advanced Targeting Computer Reaction Control System Improved Light Armor Plating > --- WEAPON ----------- Flak Cannon Advanced Assault Cannon > --- INVENTORY -------- Cesium-ion Thruster Cesium-ion Thruster Cesium-ion Thruster EM Pulse Gun Advanced Beam Rifle [Rating: 35] Favorites ----------- Power Heavy Ion Engine Engine Heavy Ion Engine Propulsion Light Treads Treads Light Treads Wheel Wheel Hover Unit Aerolev Unit Flight Unit Surge Thruster Utility Large Storage Unit Device Seismic Detector Storage Large Storage Unit Processor Advanced Targeting Computer Protection Light Armor Plating Weapon Improved Light Cannon Energy Gun EM Pulse Gun Ballistic Gun Shotgun Ballistic Cannon Improved Light Cannon Launcher Mini Grenade Launcher Build | -11 -10 -9 -9 -9 -8 -7 ------- Run | Yrd Mat Mat Sto Gar Mat Fac Slots Evolved 6 | . . 2 . . 2 2 Power . | . . . . . . . Propulsion 3 | . . 1 . . 1 1 Utility 3 | . . 1 . . 1 1 Weapon . | . . . . . . . Parts Attached 54 | 7 2 4 6 9 13 13 Power 3 | 1 . 1 . 1 . . Engine 3 | 1 . 1 . 1 . . Core . | . . . . . . . Reactor . | . . . . . . . Propulsion 19 | 2 . 1 2 4 5 5 Treads 10 | 1 . 1 2 3 1 2 Leg . | . . . . . . . Wheel 3 | 1 . . . 1 1 . Hover 1 | . . . . . 1 . Flight 5 | . . . . . 2 3 Utility 17 | 2 1 1 2 3 3 5 Device 4 | 1 . . . . 1 2 Storage 2 | 1 1 . . . . . Processor 2 | . . . . . . 2 Hackware . | . . . . . . . Protection 9 | . . 1 2 3 2 1 Artifact . | . . . . . . . Weapon 15 | 2 1 1 2 1 5 3 Energy Gun 3 | 1 . . . . 1 1 Energy Cannon . | . . . . . . . Ballistic Gun 5 | 1 . 1 . 1 2 . Ballistic Cannon 4 | . . . 1 . 1 2 Launcher 3 | . 1 . 1 . 1 . Special Weapon . | . . . . . . . Impact Weapon . | . . . . . . . Slashing Weapon . | . . . . . . . Piercing Weapon . | . . . . . . . Special Melee Weapon . | . . . . . . . Unidentified Prototypes 5 | . . 1 . . 2 2 Parts Lost 21 | . . . 1 8 10 2 Power 1 | . . . . 1 . . Propulsion 8 | . . . . 3 4 1 Utility 8 | . . . 1 3 4 . Weapon 4 | . . . . 1 2 1 Highest Loss Streak 4 | . . . 1 3 4 1 To Critical Strikes . | . . . . . . . Average Backups 10 | 3 7 14 14 13 12 4 Power 1 | . 1 2 2 1 . . Propulsion 1 | 2 3 2 2 1 . 2 Utility 2 | . . 2 3 4 2 . Weapon 5 | . 2 7 6 6 7 2 Tool/Special . | . . . . . . . Unused Backups 19 | . . 3 3 1 7 5 Power 4 | . . 2 . 1 1 . Propulsion 5 | . . 1 . . 1 3 Utility 3 | . . . . . 3 . Weapon 7 | . . . 3 . 2 2 Tool/Special . | . . . . . . . Average Slot Usage (%) 78 | . 100 97 99 92 66 42 Engine 6 | . 14 11 11 4 7 . Treads 15 | . 14 22 22 20 8 7 Wheel 8 | . 14 11 11 12 7 . Hover 1 | . . . . . . 4 Flight 1 | . . . . . . 4 Device 9 | . 14 11 11 11 7 4 Storage 8 | . 14 11 11 11 7 . Processor 1 | . . . . . . 7 Protection 7 | . . 8 10 10 9 3 Energy Gun 2 | . 9 8 1 . 1 2 Ballistic Gun 8 | . 14 13 10 11 6 . Ballistic Cannon 6 | . . . 9 10 6 4 Peak Build Rating 35 | 7 8 14 15 16 17 35 Average Rating 13 | 5 7 12 14 13 14 17 On Entrance 9 | . 7 8 14 15 15 9 Naked Turns 282 | . . . . . 16 266 Heaviest Build 43 | 12 28 37 39 43 43 17 Greatest Support 48 | 10 10 10 10 40 16 48 Greatest Overweight (x) 4 | 1 2 3 3 3 4 . Average Overweight (x) 1 | . 1 2 3 2 1 . Largest Inventory Capacity 15 | 8 15 15 15 15 15 5 Average Capacity 12 | 7 10 15 15 15 13 5 Most Carried 15 | 5 12 15 15 15 15 5 Average Carried 10 | 3 7 14 14 13 12 4 Final Capacity 15 | 8 15 15 15 15 5 5 Final Carried 15 | 5 12 15 15 13 4 4 Class Distribution -------------------- 81% | Mutant 18% | Scavenger-Mutant Dominant Class ---------------- Mutant | -10/Materials Mutant | -9/Materials Mutant | -9/Storage Scavenger-Mutant | -9/Garrison Mutant | -8/Materials Mutant | -7/Factory Resources | -11 -10 -9 -9 -9 -8 -7 ----------- Run | Yrd Mat Mat Sto Gar Mat Fac Matter Collected 2101 | 244 113 247 401 539 301 256 Remotely . | . . . . . . . Salvage Created 2253 | 99 173 315 530 352 568 216 Parts 153 | 8 14 17 42 33 34 5 Haulers Intercepted 3 | . . 2 . . 1 . Recyclers Shooed . | . . . . . . . Parts Field Recycled . | . . . . . . . Retrieved Matter . | . . . . . . . Parts Self-Destructed . | . . . . . . . Prevented . | . . . . . . . Kills | -11 -10 -9 -9 -9 -8 -7 ------- Run | Yrd Mat Mat Sto Gar Mat Fac Combat Hostiles Destroyed 71 | . 5 5 16 20 20 5 Guns 21 | . 2 3 6 7 3 . Cannons 18 | . . . 6 6 1 5 AOE 32 | . 3 2 4 7 16 . Classes Destroyed 11 | 2 1 3 3 . 2 . Worker 6 | . . . 2 . 3 1 Builder 2 | . . . . . 2 . Tunneler 2 | 2 . . . . . . Hauler 3 | . . 2 . . 1 . Recycler 3 | 1 . . 2 . . . Watcher 1 | . . . . . 1 . Swarmer 18 | . . . 4 10 4 . Grunt 31 | . 5 2 5 6 9 4 Brawler 6 | . . 1 1 1 3 . Duelist 3 | . . . 1 1 1 . Sentry 13 | . . 2 5 2 3 1 Best Kill Streak 11 | 3 3 2 11 7 10 5 Combat Bots Only 8 | . 3 2 7 7 8 4 Max Kills in Single Turn 5 | 1 3 2 5 2 3 2 Gunslinging . | . . . . . . . Exploded 3 | . 3 2 2 2 3 . Melee . | . . . . . . . Uniques/NPCs Destroyed . | . . . . . . . Combat | -11 -10 -9 -9 -9 -8 -7 -------- Run | Yrd Mat Mat Sto Gar Mat Fac Hostile Shots Fired 406 | . 10 20 41 114 132 89 Missed 141 | . 3 6 12 27 57 36 Hits 265 | . 7 14 29 87 75 53 Melee 5 | . . . . . 5 . Projectile 260 | . 7 14 29 87 70 53 Critical Strikes 5 | . . . 1 1 3 . Damage Taken 4149 | 38 83 230 360 1097 1332 1009 Core 1256 | 19 22 53 36 160 265 701 Absorbed by Shields . | . . . . . . . Core Remaining (%) 65 | 92 83 . . 37 51 . Volleys Fired 184 | 14 7 17 36 64 31 15 Largest 2 | 2 2 2 2 2 2 2 Hottest 94 | 60 60 63 63 56 94 77 Shots Fired 340 | 28 14 32 70 118 54 24 Gun 180 | 28 13 29 34 53 23 . Cannon 129 | . . . 33 59 13 24 Launcher 31 | . 1 3 3 6 18 . Special . | . . . . . . . Kinetic 270 | 14 7 18 66 112 29 24 Thermal 7 | . . . . . 7 . Explosive 31 | . 1 3 3 6 18 . Electromagnetic 32 | 14 6 11 1 . . . Robot Hit Streak 9 | 5 3 6 7 9 5 7 Robot Miss Streak 4 | 4 3 4 4 4 3 4 Penetration Max . | . . . . . . . Secondary Targets . | . . . . . . . Shots Hit Robots 214 | 17 7 21 47 72 31 19 Core Hits 176 | 5 7 13 31 33 69 18 Critical Kills 2 | . . 1 1 . . . Critical Parts Destroyed . | . . . . . . . Critical Strikes 5 | . . 1 3 1 . . Destroy 2 | . . 1 1 . . . Blast 3 | . . . 2 1 . . Melee Attacks . | . . . . . . . Impact . | . . . . . . . Slashing . | . . . . . . . Piercing . | . . . . . . . Sneak Attacks . | . . . . . . . Combat Hostiles . | . . . . . . . Follow-up Attacks . | . . . . . . . Damage Inflicted 6882 | 232 192 371 1356 1723 2502 506 Guns 1634 | 173 72 241 372 570 206 . Cannons 1718 | . . . 427 635 150 506 Explosions 3509 | 59 120 130 557 518 2125 . Melee . | . . . . . . . Ramming 21 | . . . . . 21 . Kinetic 3071 | 69 18 178 799 1205 296 506 Thermal 119 | 59 . . . . 60 . Explosive 3450 | . 120 130 557 518 2125 . Electromagnetic 221 | 104 54 63 . . . . Impact . | . . . . . . . Slashing . | . . . . . . . Piercing . | . . . . . . . Highest Corruption 3 | . . . 3 3 . . Average Corruption 2 | . . . 2 3 . . Corruption Purged . | . . . . . . . Corruption Blocked . | . . . . . . . Effects 25 | . . . 7 18 . . Message Errors 8 | . . . 3 5 . . Matter Fused 5 | . . . 1 4 . . Heat Flow Errors 4 | . . . 1 3 . . Energy Discharges 1 | . . . . 1 . . Data Loss (minor) 5 | . . . 2 3 . . Misfires 2 | . . . . 2 . . Overload Shots . | . . . . . . . Overflow Damage 169 | 3 . . 28 69 69 . Projectiles 6 | . . . 3 3 . . Explosions 163 | 3 . . 25 66 69 . Melee . | . . . . . . . Knockbacks 11 | . . . 3 1 3 4 Impact . | . . . . . . . Kinetic 11 | . . . 3 1 3 4 Secondary . | . . . . . . . Self-Inflicted Damage 329 | 39 8 8 . 114 160 . Shots 11 | 1 1 1 . 3 5 . Rammed 2 | . . . . . 2 . Targets Rammed 2 | . . . . . 2 . Kicked . | . . . . . . . Crushed . | . . . . . . . Highest Temperature 268 | 40 64 21 237 268 171 15 Average Temperature 39 | 22 27 9 36 44 64 6 Received Heat Transfer 1365 | . 42 75 153 300 459 336 Effects 1 | . . . 1 . . . Energy Bleed 1 | . . . 1 . . . Siege Activations . | . . . . . . . Martial Activations . | . . . . . . . Shielding Activations . | . . . . . . . Robots Disrupted . | . . . . . . . Combat Hostiles . | . . . . . . . Robots Corrupted . | . . . . . . . Combat Hostiles . | . . . . . . . Parts Fried . | . . . . . . . Impact Corruptions . | . . . . . . . Robots Melted . | . . . . . . . Combat Hostiles . | . . . . . . . Parts Melted . | . . . . . . . Heat Transferred 211 | 100 . . . . 111 . Parts Sabotaged . | . . . . . . . Parts Stolen . | . . . . . . . Parts Stripped . | . . . . . . . Power Chain Reactions 1 | 1 . . . . . . Alert | -11 -10 -9 -9 -9 -8 -7 ------- Run | Yrd Mat Mat Sto Gar Mat Fac Maximum Alert Level 4 | . . . 1 4 3 2 Low Security (%) 31 | 100 100 100 74 . . . Level 1 18 | . . . 25 11 . 55 Level 2 24 | . . . . 26 48 44 Level 3 24 | . . . . 57 51 . Level 4 1 | . . . . 4 . . Level 5 . | . . . . . . . High Security . | . . . . . . . Max Security . | . . . . . . . Peak Influence 1135 | 10 82 84 362 1135 978 545 Initial 553 | . . 17 . 224 553 441 Average 413 | . 28 23 130 706 697 396 Influence Increases 3169 | 15 140 178 540 1031 787 478 Destroy 0b10 Robot/C 1560 | . 100 100 320 540 400 100 Destroy 0b10 Robot/NC 85 | 15 . 10 20 . 35 5 Destroy Leader 278 | . 20 34 90 40 84 10 Allied During Kill 15 | . . . . 15 . . Successful Hack 83 | . 13 9 8 21 14 18 Disable Machine 135 | . . . 60 45 15 15 Anti-Garrison Action 250 | . . . . 250 . . Destroy Structure 223 | . 7 25 27 60 104 . Partial Spotted 30 | . . . . . . 30 Lose Combat Pursuer 510 | . . . 15 60 135 300 Influence Decreases 2788 | 15 98 220 195 241 952 1067 Entered New Map 1257 | . . 25 . 121 582 529 Time Decay 1131 | 15 98 195 185 . 270 368 Search Patrol Dispatched 150 | . . . . . . 150 Lost Part 210 | . . . 10 80 100 20 Lost Ally 40 | . . . . 40 . . Squads Dispatched 21 | . 2 1 2 . 8 8 Investigation 1 | . 1 . . . . . Extermination 2 | . . . . . . 2 Reinforcement 13 | . 1 1 1 . 5 5 Assault 3 | . . . . . 3 . Garrison 2 | . . . 1 . . 1 Intercept . | . . . . . . . Searches Triggered 1 | . . . . . . 1 Construction Impeded 1 | . . . . . 1 . Haulers Reinforced 2 | . . . . . . 2 Active Scanning Responses . | . . . . . . . Cargo Convoy Interrupts . | . . . . . . . Stealth | -11 -10 -9 -9 -9 -8 -7 --------- Run | Yrd Mat Mat Sto Gar Mat Fac Distress Signals 11 | . . 1 3 . 6 1 Communications Jammed . | . . . . . . . Distress Signals . | . . . . . . . Times Spotted 158 | . 5 7 20 30 59 37 Peak Tracking Total 14 | . 3 3 5 7 14 7 Tactical Retreats 13 | . . . 1 3 3 6 Traps | -11 -10 -9 -9 -9 -8 -7 ------- Run | Yrd Mat Mat Sto Gar Mat Fac Traps Triggered 9 | . 1 1 2 3 . 2 Indirectly . | . . . . . . . Trap Hack Attempts . | . . . . . . . Triggered . | . . . . . . . Disarmed . | . . . . . . . Reprogrammed . | . . . . . . . Reused . | . . . . . . . Traps Extracted . | . . . . . . . Installed . | . . . . . . . Triggered . | . . . . . . . Machines | -11 -10 -9 -9 -9 -8 -7 ---------- Run | Yrd Mat Mat Sto Gar Mat Fac Machines Disabled 14 | . . . 4 8 1 1 Max in Single Turn 1 | . . . 1 1 1 1 Garrison Access 1 | . . . . . 1 . Garrison Relay 5 | . . . . 5 . . Machines Repaired . | . . . . . . . Machines Dismantled . | . . . . . . . Machines Sabotaged . | . . . . . . . Overloaded Fab Kills . | . . . . . . . Hacking | -11 -10 -9 -9 -9 -8 -7 --------- Run | Yrd Mat Mat Sto Gar Mat Fac Machines Accessed 14 | . 2 3 2 3 2 2 Terminals 12 | . 2 3 1 3 1 2 Fabricators . | . . . . . . . Repair Stations . | . . . . . . . Recycling Units . | . . . . . . . Scanalyzers . | . . . . . . . Garrison Access 2 | . . . 1 . 1 . Total Hacks 31 | . 6 8 6 5 2 4 Successful 15 | . 3 3 2 2 2 3 Failed 16 | . 3 5 4 3 . 1 Catastrophic . | . . . . . . . Database Lockouts . | . . . . . . . Manual 17 | . 5 4 4 . . 4 Terminals 28 | . 6 8 4 5 1 4 Fabricators . | . . . . . . . Repair Stations . | . . . . . . . Recycling Units . | . . . . . . . Scanalyzers . | . . . . . . . Garrison Access 3 | . . . 2 . 1 . Terminal Hacks 7 | . 1 2 . 2 1 1 Open Door 1 | . . . . 1 . . Terminal Index 1 | . . . . . 1 . Alert Level 1 | . . . . . . 1 Locate Traps 1 | . . 1 . . . . Registered Components 2 | . 1 1 . . . . Garrison Registry 1 | . . . . 1 . . Fabricator Hacks . | . . . . . . . Repair Station Hacks . | . . . . . . . Recycling Unit Hacks . | . . . . . . . Scanalyzer . | . . . . . . . Garrison Access Hacks 2 | . . . 1 . 1 . Unlock Access 1 | . . . 1 . . . Seal Access 1 | . . . . . 1 . Unauthorized Hacks 6 | . 2 1 1 . . 2 Terminals 6 | . 2 1 1 . . 2 Botnet 6 | . 2 1 1 . . 2 Fabricators . | . . . . . . . Repair Stations . | . . . . . . . Recycling Units . | . . . . . . . Scanalyzers . | . . . . . . . Garrison Access . | . . . . . . . Data Cores Recovered . | . . . . . . . Used . | . . . . . . . Hacking Detections 10 | . 1 2 2 2 1 2 Full Trace Events . | . . . . . . . Feedback Events . | . . . . . . . Feedback Blocked . | . . . . . . . Robot Schematics Acquired . | . . . . . . . Robots Built . | . . . . . . . Authchips . | . . . . . . . Time . | . . . . . . . Total Robot Build Rating . | . . . . . . . Part Schematics Acquired . | . . . . . . . Parts Built . | . . . . . . . Authchips . | . . . . . . . Time . | . . . . . . . Total Part Build Rating . | . . . . . . . Parts Repaired . | . . . . . . . Time . | . . . . . . . Parts Recycled . | . . . . . . . Recycled Matter . | . . . . . . . Retrieved Matter . | . . . . . . . Retrieved Components . | . . . . . . . Parts Scanalyzed . | . . . . . . . Part Schematics Acquired . | . . . . . . . Parts Damaged . | . . . . . . . Bothacking | -11 -10 -9 -9 -9 -8 -7 ------------ Run | Yrd Mat Mat Sto Gar Mat Fac Used RIF Installer . | . . . . . . . Robots Hacked . | . . . . . . . Non-combat . | . . . . . . . Combat . | . . . . . . . Robot Hacks Applied . | . . . . . . . Relay Couplers Released 19 | . . . . 19 . . Machine Destruction 19 | . . . . 19 . . Fabnet Peak Effective % . | . . . . . . . Robots Rewired . | . . . . . . . Allies Hacked . | . . . . . . . Hacks Repelled . | . . . . . . . Allies | -11 -10 -9 -9 -9 -8 -7 -------- Run | Yrd Mat Mat Sto Gar Mat Fac Total Allies 2 | . . . . 2 . . Largest Group 2 | . . . . 2 . . Highest-Rated Group 51 | . . . . 51 . . Highest-Rated Ally 31 | . . . . 31 . . Initial Warlord ECA Mod 15 | . . . . . 8 7 Total Orders . | . . . . . . . Ally Attacks 22 | . . . . 22 . . Total Damage 448 | . . . . 448 . . Kills 7 | . . . . 7 . . Allies Corrupted . | . . . . . . . Allies Melted 1 | . . . . . . 1 Intel | -11 -10 -9 -9 -9 -8 -7 ------- Run | Yrd Mat Mat Sto Gar Mat Fac Active Infowar (turns) 3156 | 9 260 541 390 1076 519 361 Sensors 759 | . . . . . 398 361 Seismic 2397 | 9 260 541 390 1076 121 . Robot Analysis Total . | . . . . . . . Derelict Logs Recovered . | . . . . . . . Drone Launches . | . . . . . . . Drone Recoveries . | . . . . . . . Exploration | -11 -10 -9 -9 -9 -8 -7 ------------- Run | Yrd Mat Mat Sto Gar Mat Fac Turns Passed 3827 | 112 260 541 390 1076 594 854 Spaces Moved 2854 | 64 215 293 200 674 360 1048 Core 529 | 1 . . . . 28 500 Treads 233 | . . . . 1 . 232 Legs . | . . . . . . . Wheels 1702 | 63 215 293 200 673 258 . Hover 72 | . . . . . 70 2 Flight 318 | . . . . . 4 314 Fastest Speed 32 | 50 95 110 125 105 35 32 Average Speed 99 | 90 101 124 125 122 107 69 Slowest Speed 240 | 95 110 125 125 240 140 160 Overloaded Moves . | . . . . . . . Propulsion Burnouts . | . . . . . . . Robots Hopped 9 | . . . . . . 9 Potential Cave-ins . | . . . . . . . Cave-ins Triggered . | . . . . . . . Exploration Rate (%) 35 | 5 27 27 33 76 34 43 Regions Visited 6 Branch Regions 1 Pre-discovered Areas . | . . . . . . . Known Exits Taken 1 | . . . 1 . . . Unknown Exits Taken 4 | 1 1 1 . . 1 . Scrap Searched . | . . . . . . . Spaces Dug . | . . . . . . . Terrain Destroyed 219 | 3 6 24 29 47 110 . Melee . | . . . . . . . Projectile 3 | . . . 3 . . . AOE 216 | 3 6 24 26 47 110 . Terrain Rammed . | . . . . . . . Walls Destroyed . | . . . . . . . Machines Disabled . | . . . . . . . Actions | -11 -10 -9 -9 -9 -8 -7 --------- Run | Yrd Mat Mat Sto Gar Mat Fac Total 3495 | 89 245 441 272 805 505 1138 Wait 326 | . 14 113 13 38 89 59 Move 2832 | 63 214 292 200 671 359 1033 Hop 6 | . . . . . . 6 Pick Up 44 | 5 6 8 6 6 5 8 Fast Attach 26 | 7 1 2 1 1 7 7 Attach 20 | . . 1 . 8 6 5 Detach 2 | . 1 . . 1 . . Swap 23 | . 1 3 8 5 5 1 Drop 20 | . 1 5 8 1 1 4 Fire 184 | 14 7 17 36 64 31 15 Melee . | . . . . . . . Ram 2 | . . . . . 2 . Kick . | . . . . . . . Crush . | . . . . . . . Escape Stasis 10 | . . . . 10 . . Rewire . | . . . . . . . Trap . | . . . . . . . Miscellaneous . | . . . . . . . Route ------- -11/Scrapyard -10/Materials (discovered 2 exits: *Mat / [*Sub]) -9/Materials (discovered 2 exits: [*Min] / *Sto) -9/Storage -9/Garrison (discovered 3 exits: *Mat x3) -8/Materials -7/Factory History --------- Turn | Location | Event 14 | -11/Scrapyard | Discovered new exit (range 16) 113 | -11/Scrapyard | Entered Materials 226 | -10/Materials | Discovered new exit (range 10) 243 | -10/Materials | Discovered new exit (range 15) 313 | -10/Materials | Build established: Mutant 373 | -10/Materials | Entered another Materials area 373 | -9/Materials | Evolved 2 slots: Propulsion x1, Utility x1 647 | -9/Materials | Discovered new exit (range 9) 691 | -9/Materials | Discovered new exit (range 8) 914 | -9/Materials | Entered Storage 1227 | -9/Storage | Destroyed 7 combat bots 1230 | -9/Storage | Garrison activated, responded to threat 1304 | -9/Storage | Identified exit to Garrison 1304 | -9/Storage | Entered Garrison 1408 | -9/Garrison | Triggered checkpoint 1420 | -9/Garrison | Destroyed 7 combat bots 1426 | -9/Garrison | Garrison Relay disabled 1431 | -9/Garrison | Discovered new exit (range 59) 1431 | -9/Garrison | Discovered new exit (range 43) 1431 | -9/Garrison | Discovered new exit (range 73) 1506 | -9/Garrison | Triggered checkpoint 1579 | -9/Garrison | Rescued a captive Derelict 1582 | -9/Garrison | Rescued a captive Derelict 1591 | -9/Garrison | Core integrity fell below 50% 1634 | -9/Garrison | Triggered checkpoint 1664 | -9/Garrison | Garrison Relay disabled 1764 | -9/Garrison | Attempted to access garrison exit controls, blocked by remote lockdown 1826 | -9/Garrison | Triggered checkpoint 1841 | -9/Garrison | Triggered checkpoint 1863 | -9/Garrison | Lost 3 parts (1n1u1w) 1883 | -9/Garrison | Attempted to access garrison exit controls, blocked by remote lockdown 1922 | -9/Garrison | Triggered checkpoint 2102 | -9/Garrison | Garrison Relay disabled 2114 | -9/Garrison | Garrison Relay disabled 2264 | -9/Garrison | Triggered checkpoint 2334 | -9/Garrison | Garrison Relay disabled 2380 | -9/Garrison | Entered Materials 2380 | -8/Materials | Evolved 2 slots: Propulsion x1, Utility x1 2780 | -8/Materials | First assault squad dispatched 2877 | -8/Materials | Destroyed 8 combat bots 2885 | -8/Materials | Lost 4 parts (1n1u2w) 2908 | -8/Materials | Released all parts (7) 2965 | -8/Materials | Discovered new exit (range 11) 2974 | -8/Materials | Entered Factory 2974 | -7/Factory | Evolved 2 slots: Propulsion x1, Utility x1 3484 | -7/Factory | Released all parts (11) 3670 | -7/Factory | Core integrity fell below 50% 3700 | -7/Factory | Core integrity fell below 20% 3723 | -7/Factory | Allied Derelicts emerged from ambush trap array 3751 | -7/Factory | Garrison activated, responded to threat 3774 | -7/Factory | Search patrols dispatched 3828 | -7/Factory | Destroyed by Heavy Explosive Trap Last Messages --------------- 03757_ 6V-TQ6(g) heat damages Carbon-fiber Leg. 03759_ 6V-TQ6(g) overheating. 03762_ 6V-TQ6(g) critical meltdown. 03774_ ALERT: Heightened foreign activity detected, multiple search patrols dispatched. 03775_ Acquired 59 matter. 03776_ G-47 Trooper suffers critical hit (Burn). 03776_ K-01 Serf collects debris. 03812_ Acquired Prototype Flight Unit. 03812_ Identified Cld. VTOL Module. 03814_ ALERT: Cargo convoy en route, clear transfer corridor. 03815_ Acquired Cld. VTOL Module. 03819_ O-16 Technician: "IFF HANDSHAKE FAILED. SECURING TERMINAL." 03822_ ALERT: Hostiles spotted, dispatching reinforcements to Terminal F002. 03828_ Triggered Heavy Explosive Trap. 03828_ An explosion rips through the floor. 03828_ Cesium-ion Thruster destroyed. Map ----- +----------------------------------------------------+ | ?????????????????????????????????????????????????? | | ?????????????????????????????????????????????????? | | ?????????????????????????????????????????????????? | | ?????????????????????????????????????????????????? | | ?????????????????????????????????????????????????? | | ?????????????????????????????????????????????????? | | ?????????????????????????????????????????????????? | | ?????????????????????????????????????????????????? | | ?????????????????????????????????????????????????? | | ?????????????????????????????????????????????????? | | ?????????????????????????????????????????????????? | | ?????????????????????????????????????????????????? | | ?????????????????????????????????????????????????? | | ????????????????????????##+##????????????????????? | | ???????????????????????? #????????????????????? | | ???????????????????????? ????????????????????? | | ???????????????????????? #########????????????? | | ????????????????????????# ?????????????? | | ????????????????????????# ?????????????? | | ????????????????????????# === ?????????????? | | ????????????????????????# === ?#????????????? | | ????????????????????????# == ?????????????? | | ????????????????????????# #????????????? | | ????????????????????????#u """ #????????????? | | ????????????????????????# """ #????????????? | | ????????????????????????#@ """ w #????????????? | | ????????????????????????+ #????????????? | | ????????????????????????# """ #????????????? | | ????????????????????????# """ ! #????????????? | | ????????????????????????# """ +????????????? | | ????????????????????????# ! #????????????? | | ????????????????????????# """ #????????????? | | ????????????????????????# """ #????????????? | | ???????????????????????## """ #????????????? | | ???????????????????????# #????????????? | | ???????????????????????# "T" ##????????????? | | ???????????????????????+ ] #?????????????? | | ???????????????????????# or #?????????????? | | ???????????????????????# ####?????????????? | | ???????????????????????# ######????????????????? | | ???????????????????????# #?????????????????????? | | ???????????????????????# #?????????????????????? | | ???????????????????????# #?????????????????????? | | ???????????????????????# #?????????????????????? | | ???????????????????????# #?????????????????????? | | ???????????????????????# #?????????????????????? | | ???????????????????????# #?????????????????????? | | ?????????????????????### #????" """???????????? | | ?????????????????????# #??""" """?????????? | | ?????????????????????# # """????????# | +----------------------------------------------------+ Best States ------------- Heat Dissipation 34 Energy Generation 14 Energy Capacity 280 Matter Stores 300 Matter Capacity 300 Sight Range 16 Robot Scan Range 15 Terrain Scan Density 10 Armor Coverage 300 Evasion (%) 63 Targeting Accuracy 8 Recoil Reduction 2 Item Schematics ----------------- None Robot Schematics ------------------ None Fabricated ------------ Nothing Repaired ---------- Nothing Alien Tech Used ----------------- None Achievements -------------- None Challenges ------------ None Game ------ Seed XenonBurstPlatform Manual? 0 Play Time 00:43:54 Cumulative 115.4 hours Start 2025.09.13 @ 22:48:53 End 2025.09.13 @ 23:44:50 Sessions 4 Manual Loads 0 Difficulty Rogue Special Mode None Game No. 140 Rogue 140 Adventurer 0 Explorer 0 Win Type - Total 0 Types 0/0/0/0/0/0/0/0/0/0 Lore% 64 Gallery% 50 Achievement% 46 Wizard Run 0 Options --------- Layout 1 ASCII 0 Keyboard 0 Movement Arrows Keybinds 0 Fullscreen 1 Font 24/Smallcaps Map View 50x35 Zoom Use 0% Tactical HUD 1 Map Filters NONE Filters NONE Steam 1 RUN: a8961aa5-d33a-40e0-8277-b57f3da9994e